fUSD/lending_fUSD_20251210
["ID","MTS","AMOUNT","RATE_DAILY","PERIOD"]
[398066682,1765349449901,-505.58001873,0.00014572,2]
[398066683,1765349449911,-500.0,0.00014572,2]
[398066684,1765349449920,-2035.09,0.00014572,2]
[398066685,1765349449930,-500.0,0.00014572,2]
[398066686,1765349449939,-500.0,0.00014572,2]
[398066687,1765349449948,-500.0,0.00014572,2]
[398066688,1765349449958,-522.35,0.00014572,2]
[398066689,1765349449968,-500.0,0.00014572,2]
[398066690,1765349449978,-527.16359962,0.00014572,2]
[398066691,1765349449987,-500.0,0.00014572,2]
[398066692,1765349449997,-500.0,0.00014572,2]
[398066693,1765349450006,-500.0,0.00014572,2]
[398066694,1765349450015,-500.0,0.00014572,2]
[398066695,1765349450024,-689.52,0.00014572,2]
[398066696,1765349450033,-180.11021571,0.00014572,2]
[398066697,1765349450042,-500.0,0.00014572,2]
[398066698,1765349450051,-531.24412636,0.00014572,2]
[398066699,1765349450060,-500.0,0.00014572,2]
[398066700,1765349450069,-500.0,0.00014572,2]
[398066701,1765349450078,-572.22910641,0.00014572,2]
[398066702,1765349450087,-500.0,0.00014572,2]
[398066703,1765349450096,-720.66,0.00014572,2]
[398066704,1765349450106,-500.0,0.00014572,2]
[398066705,1765349450115,-500.0,0.00014572,2]
[398066706,1765349450124,-500.0,0.00014572,2]
[398066707,1765349450134,-500.0,0.00014572,2]
[398066708,1765349450143,-500.0,0.00014572,2]
[398066709,1765349450152,-500.0,0.00014572,2]
[398066710,1765349450367,-500.0,0.00014572,2]
[398066711,1765349450378,-221.32120126,0.00014572,2]
[398066712,1765349450387,-500.0,0.00014572,2]
[398066713,1765349450397,-826.22,0.00014572,2]
[398066714,1765349450408,-500.0,0.00014572,2]
[398066715,1765349450417,-500.0,0.00014572,2]
[398066716,1765349450427,-500.0,0.00014572,2]
[398066717,1765349450437,-500.0,0.00014572,2]
[398066718,1765349450446,-500.0,0.00014572,2]
[398066719,1765349450456,-1233.42,0.00014572,2]
[398066720,1765349450465,-500.0,0.00014572,2]
[398066721,1765349450474,-500.0,0.00014572,2]
[398066722,1765349450483,-503.64202236,0.00014572,2]
[398066723,1765349450492,-500.0,0.00014572,2]
[398066724,1765349450501,-494.79883246,0.00014572,2]
[398066725,1765349450510,-545.04948366,0.00014572,2]
[398066726,1765349450520,-500.0,0.00014572,2]
[398066727,1765349450529,-500.0,0.00014572,2]
[398066728,1765349450542,-500.0,0.00014572,2]
[398066729,1765349450552,-500.0,0.00014572,2]
[398066730,1765349450561,-500.0,0.00014572,2]
[398066731,1765349450570,-586.76,0.00014572,2]
[398066732,1765349450579,-500.0,0.00014572,2]
[398066733,1765349450588,-505.81641922,0.00014572,2]
[398066734,1765349450598,-500.0,0.00014572,2]
[398066735,1765349450607,-542.58,0.00014572,2]
[398066736,1765349450620,-500.0,0.00014572,2]
[398066737,1765349450629,-500.0,0.00014572,2]
[398066738,1765349450638,-747.07,0.00014572,2]
[398066739,1765349450648,-500.0,0.00014572,2]
[398066740,1765349450657,-500.0,0.00014572,2]
[398066741,1765349450666,-500.0,0.00014572,2]
[398066742,1765349450675,-500.0,0.00014572,2]
[398066743,1765349450684,-503.08206252,0.00014572,2]
[398066744,1765349450693,-576.25789452,0.00014572,2]
[398066745,1765349450702,-500.0,0.00014572,2]
[398066746,1765349450711,-500.0,0.00014572,2]
[398066747,1765349450721,-500.0,0.00014572,2]
[398066748,1765349450730,-500.0,0.00014572,2]
[398066749,1765349450739,-500.0,0.00014572,2]
[398066750,1765349450749,-500.0,0.00014572,2]
[398066751,1765349450758,-1143.67,0.00014572,2]
[398066752,1765349450767,-530.2,0.00014572,2]
[398066753,1765349450776,-500.0,0.00014572,2]
[398066754,1765349450786,-500.0,0.00014572,2]
[398066755,1765349450795,-500.0,0.00014572,2]
[398066756,1765349450804,-500.0,0.00014572,2]
[398066757,1765349450814,-500.0,0.00014572,2]
[398066758,1765349450823,-500.0,0.00014572,2]
[398066759,1765349450832,-500.0,0.00014572,2]
[398066760,1765349450842,-915.73,0.00014572,2]
[398066761,1765349450851,-330.82209095,0.00014572,2]
[398066762,1765349450860,-500.0,0.00014572,2]
[398066763,1765349450869,-500.0,0.00014572,2]
[398066764,1765349450879,-500.0,0.00014572,2]
[398066765,1765349450888,-500.0,0.00014572,2]
[398066766,1765349450897,-2101.25679072,0.00014572,2]
[398066767,1765349450918,-3.59320928,0.00014572,2]
[398066768,1765349450927,-257.03679072,0.00014572,2]
[398066769,1765349450944,-242.96320928,0.00014572,2]
[398066770,1765349450953,-589.27398663,0.00014572,2]
[398066771,1765349450964,-468.81601337,0.00014572,2]
[398066772,1765349450973,-403.87760787,0.00014572,2]
[398066773,1765349450983,-354.37493692,0.00014572,2]
[398066774,1765349450992,-500.0,0.00014572,2]
[398066775,1765349451001,-500.0,0.00014572,2]
[398066776,1765349451010,-500.0,0.00014572,2]
[398066777,1765349451019,-1303.49,0.00014572,2]
[398066778,1765349451028,-500.0,0.00014572,2]
[398066779,1765349451037,-412.52089858,0.00014572,2]
[398066780,1765349451051,-87.47910142,0.00014572,2]
[398066781,1765349451059,-507.45908625,0.00014572,2]
[398066782,1765349451068,-500.0,0.00014572,2]
[398066783,1765349451077,-502.06666089,0.00014572,2]
[398066784,1765349451086,-500.0,0.00014572,2]
[398066785,1765349451095,-570.74947612,0.00014572,2]
[398066786,1765349451104,-500.0,0.00014572,2]
[398066787,1765349451114,-500.0,0.00014572,2]
[398066788,1765349451123,-500.0,0.00014572,2]
[398066789,1765349451132,-500.0,0.00014572,2]
[398066790,1765349451141,-500.0,0.00014572,2]
[398066791,1765349451150,-500.0,0.00014572,2]
[398066792,1765349451159,-500.0,0.00014572,2]
[398066793,1765349451168,-705.86,0.00014572,2]
[398066794,1765349451177,-500.0,0.00014572,2]
[398066795,1765349451187,-529.35,0.00014572,2]
[398066796,1765349451195,-579.8,0.00014572,2]
[398066797,1765349451205,-851.56,0.00014572,2]
[398066798,1765349451214,-500.0,0.00014572,2]
[398066799,1765349451223,-202.53876033,0.00014572,2]
[398066800,1765349451232,-500.0,0.00014572,2]
[398066801,1765349451241,-500.0,0.00014572,2]
[398066802,1765349451250,-17.77469136,0.00014572,2]
[398066803,1765349451270,-868.08530864,0.00014572,2]
[398066804,1765349451279,-500.0,0.00014572,2]
[398066805,1765349451288,-231.91469136,0.00014572,2]
[398066806,1765349451300,-268.08530864,0.00014572,2]
[398066807,1765349451308,-500.0,0.00014572,2]
[398066808,1765349451318,-500.0,0.00014572,2]
[398066809,1765349451327,-500.0,0.00014572,2]
[398066810,1765349451337,-192.65542762,0.00014572,2]
[398066811,1765349451346,-449.59757987,0.00014572,2]
[398066817,1765349831284,189.94651478,0.00025,120]
[398066818,1765349896995,3147.0,0.0002,120]
[398066821,1765350272811,169.8032288,0.00013781,7]
[398066822,1765350537982,175.6347136,0.00025,120]
[398066823,1765350549134,-190.62,0.00010833,2]
[398066824,1765350549156,-690.82,0.0001356,2]
[398066825,1765350549177,-916.59120184,0.00013566,3]
[398066830,1765350631497,-261.0,0.00013473,2]
[398066831,1765350631507,-250.0,0.00013473,2]
[398066832,1765350631517,-82.40879816,0.00013566,3]
[398066833,1765350631527,-467.16723415,0.00013699,2]
[398066834,1765350631564,-229.83276585,0.00013699,2]
[398066835,1765350631574,-1541.7,0.00013757,2]
[398066836,1765350631584,-1000.0,0.0001378,3]
[398066837,1765350631594,-1000.0,0.00013823,2]
[398066838,1765350631604,-178.09,0.00013978,2]
[398066839,1765350631614,-927.35,0.00013978,2]
[398066840,1765350631624,-178.09,0.00013978,2]
[398066841,1765350631634,-653.38,0.00013978,2]
[398066842,1765350631643,-266.0,0.00014268,2]
[398066843,1765350631653,-1200.0,0.00014268,2]
[398066844,1765350631663,-300.0,0.00014269,2]
[398066845,1765350631673,-3531.86586001,0.0001427,2]
[398066846,1765350631683,-150.19763612,0.0001427,2]
[398066847,1765350631692,-3870.07005829,0.0001427,2]
[398066848,1765350631704,-7576.32378885,0.0001427,2]
[398066874,1765350637391,-362.80523462,0.00014269,2]
[398066875,1765350637402,-137.19476538,0.00014269,2]
[398066876,1765350637411,-225.73806448,0.00014269,2]
[398066877,1765350637504,-274.26193552,0.00014269,2]
[398066878,1765350637514,-306.98891026,0.00014269,2]
[398066879,1765350637523,-2683.26026512,0.0001427,2]
[398066880,1765350637564,-373.38091558,0.0001427,2]
[398066881,1765350637575,-1450.10304239,0.0001427,2]
[398066963,1765350639437,-10909.43677856,0.0001427,2]
[398066965,1765350639448,-34355.28465677,0.0001427,2]
[398066971,1765350639497,-595.89235426,0.0001427,2]
[398066973,1765350639508,-1136.07781019,0.0001427,2]
[398066979,1765350639830,-450.10941216,0.0001427,2]
[398066980,1765350639842,-555.4,0.0001427,2]
[398066997,1765350642426,-1243.86456691,0.0001427,2]
[398066998,1765350642532,-304.57654823,0.0001427,2]
[398066999,1765350642645,-463811.13789886,0.0001427,2]
[398067001,1765350645556,-4999.9349905,0.0001427,2]
[398067004,1765351664694,1923.8330232,0.00025,120]
[398067012,1765351831668,-840.34576845,0.00013027,2]
[398067013,1765351831680,-338.999999,0.00013027,2]
[398067014,1765351831692,-310.5,0.00013027,2]
[398067015,1765351831769,-623.9999895,0.00013027,2]
[398067016,1765351831895,-276.31597305,0.00013027,2]
[398067017,1765351831906,-150.0,0.00013093,2]
[398067019,1765351831916,-150.0,0.00013093,2]
[398067021,1765351831925,-150.0,0.00013093,2]
[398067022,1765351831935,-150.0,0.00013093,2]
[398067024,1765351831945,-150.0,0.00013093,2]
[398067027,1765351831955,-150.0,0.00013093,2]
[398067029,1765351831965,-1200.0,0.00013112,2]
[398067031,1765351831976,-300.0,0.00013112,2]
[398067032,1765351831985,-32084.63,0.00013113,2]
[398067034,1765351831996,-178.04,0.00013225,2]
[398067036,1765351832005,-250.0,0.00013344,2]
[398067038,1765351832015,-476.892,0.00013464,2]
[398067040,1765351832025,-1852.42,0.00013564,2]
[398067042,1765351832035,-200.0,0.00013622,2]
[398067044,1765351832045,-166.6,0.00013692,2]
[398067046,1765351832055,-166.66,0.00013699,2]
[398067048,1765351832067,-1000.0,0.00013779,3]
[398067050,1765351832079,-166.66,0.00013836,2]
[398067052,1765351832089,-624.0,0.00013953,2]
[398067054,1765351832098,-166.66,0.00013973,2]
[398067056,1765351832108,-1413.0,0.00014026,2]
[398067058,1765351832118,-150.0,0.00014068,2]
[398067060,1765351832128,-153.19160894,0.00014069,2]
[398067062,1765351832137,-4831.46080241,0.00014069,2]
[398067064,1765351832149,-1413.0,0.0001407,2]
[398067066,1765351832159,-200.0,0.00014081,2]
[398067068,1765351832169,-207.4,0.00014081,2]
[398067070,1765351832178,-178.32503027,0.00014081,2]
[398067072,1765351832188,-300.0,0.00014081,2]
[398067074,1765351832199,-1000.0,0.00014081,2]
[398067075,1765351832208,-156.01200939,0.00014081,2]
[398067076,1765351832217,-720.78854626,0.00014081,2]
[398067077,1765351832226,-803.95203142,0.00014081,2]
[398067078,1765351832236,-281.5700391,0.00014081,2]
[398067079,1765351832245,-166.66,0.0001411,2]
[398067080,1765351832254,-485.0,0.0001416,2]
[398067081,1765351832263,-500.0,0.00014162,2]
[398067082,1765351832272,-629.07,0.00014162,2]
[398067083,1765351832282,-1434.84,0.00014162,2]
[398067084,1765351832291,-500.0,0.00014162,2]
[398067085,1765351832300,-500.0,0.00014162,2]
[398067086,1765351832310,-500.0,0.00014162,2]
[398067087,1765351832319,-500.0,0.00014162,2]
[398067088,1765351832328,-622.41,0.00014162,2]
[398067089,1765351832338,-500.0,0.00014162,2]
[398067090,1765351832351,-500.0,0.00014162,2]
[398067091,1765351832360,-546.34,0.00014162,2]
[398067092,1765351832369,-557.17,0.00014162,2]
[398067093,1765351832379,-500.0,0.00014162,2]
[398067094,1765351832388,-500.0,0.00014162,2]
[398067095,1765351832396,-553.29,0.00014162,2]
[398067097,1765351832406,-732.93,0.00014162,2]
[398067099,1765351832416,-632.19,0.00014162,2]
[398067101,1765351832426,-611.87,0.00014162,2]
[398067103,1765351832435,-500.0,0.00014162,2]
[398067105,1765351832445,-570.91,0.00014162,2]
[398067107,1765351832454,-500.0,0.00014162,2]
[398067109,1765351832464,-500.0,0.00014162,2]
[398067113,1765351832749,-500.0,0.00014162,2]
[398067114,1765351832760,-500.0,0.00014162,2]
[398067115,1765351832769,-1885.34,0.00014162,2]
[398067116,1765351832780,-500.0,0.00014162,2]
[398067117,1765351832789,-500.0,0.00014162,2]
[398067118,1765351832798,-500.0,0.00014162,2]
[398067119,1765351832807,-175.63473006,0.00014162,2]
[398067120,1765351832818,-500.0,0.00014162,2]
[398067121,1765351832828,-500.0,0.00014162,2]
[398067122,1765351832837,-252.79447534,0.00014162,2]
[398067123,1765351832847,-500.0,0.00014162,2]
[398067124,1765351832856,-500.0,0.00014162,2]
[398067125,1765351832867,-500.0,0.00014162,2]
[398067126,1765351832876,-389.85168101,0.00014162,2]
[398067127,1765351832886,-500.0,0.00014162,2]
[398067128,1765351832896,-500.0,0.00014162,2]
[398067129,1765351832907,-500.0,0.00014162,2]
[398067130,1765351832917,-149499.53605458,0.00014163,2]
[398067131,1765351832929,-17951.2947201,0.00014163,2]
[398067132,1765351832940,-674.4589917,0.00014163,2]
[398067133,1765351837720,-500.0,0.00014162,2]
[398067134,1765351837729,-381.42399107,0.00014162,2]
[398067147,1765351839690,-118.57600893,0.00014162,2]
[398067148,1765351839700,-381.61571641,0.00014162,2]
[398067149,1765351839709,-35.47434847,0.00014162,2]
[398067150,1765351839796,-464.52565153,0.00014162,2]
[398067151,1765351839806,-500.0,0.00014162,2]
[398067152,1765351839816,-111.47434847,0.00014162,2]
[398067153,1765351839827,-388.52565153,0.00014162,2]
[398067154,1765351839836,-687.47434847,0.00014162,2]
[398067155,1765351839847,-27.32565153,0.00014162,2]
[398067156,1765351839857,-500.0,0.00014162,2]
[398067157,1765351839867,-1346.77958614,0.00014163,2]
[398067158,1765351839878,-9066.66574271,0.00014163,2]
[398067159,1765351839987,-581461.26490477,0.00014163,2]
[398067160,1765351839997,-10110.7584,0.00014169,2]
[398067161,1765351840006,-610.1482,0.00014169,2]
[398067162,1765351840016,-23421.6463,0.00014169,2]
[398067163,1765351840025,-166.66,0.00014247,2]
[398067164,1765351840035,-500.0,0.00014254,2]
[398067165,1765351840044,-317.97791297,0.00014254,2]
[398067166,1765351840054,-297.39282989,0.00014254,2]
[398067167,1765351840063,-1000.0,0.00014254,2]
[398067168,1765351840072,-500.0,0.00014254,2]
[398067169,1765351840082,-194.72792766,0.00014254,2]
[398067170,1765351840096,-1000.0,0.00014254,2]
[398067171,1765351840106,-500.0,0.00014254,2]
[398067172,1765351840115,-1000.0,0.00014254,2]
[398067173,1765351840124,-500.0,0.00014254,2]
[398067174,1765351840135,-1000.0,0.00014254,2]
[398067175,1765351840144,-500.0,0.00014254,2]
[398067176,1765351840154,-1000.0,0.00014254,2]
[398067177,1765351840165,-500.0,0.00014254,2]
[398067178,1765351840174,-1000.0,0.00014254,2]
[398067179,1765351840183,-500.0,0.00014254,2]
[398067180,1765351840192,-1078.86550441,0.00014254,2]
[398067181,1765351840201,-500.0,0.00014254,2]
[398067182,1765351840211,-151.0,0.00014254,2]
[398067183,1765351840220,-500.0,0.00014254,2]
[398067184,1765351840229,-151.0,0.00014254,2]
[398067185,1765351840238,-500.0,0.00014254,2]
[398067186,1765351840247,-151.0,0.00014254,2]
[398067187,1765351840256,-500.0,0.00014254,2]
[398067188,1765351840265,-151.0,0.00014254,2]
[398067189,1765351840274,-500.0,0.00014254,2]
[398067190,1765351840284,-201.8476631,0.00014254,2]
[398067191,1765351840293,-151.0,0.00014254,2]
[398067192,1765351840302,-517.54313695,0.00014254,2]
[398067193,1765351840311,-151.0,0.00014254,2]
[398067194,1765351840320,-151.0,0.00014254,2]
[398067195,1765351840329,-1000.0,0.00014254,2]
[398067196,1765351840338,-151.0,0.00014254,2]
[398067197,1765351840347,-1041.77501142,0.00014254,2]
[398067198,1765351840356,-151.0,0.00014254,2]
[398067199,1765351840366,-151.0,0.00014254,2]
[398067200,1765351840375,-153.26462044,0.00014254,2]
[398067201,1765351840385,-250.0,0.00014254,2]
[398067202,1765351840394,-250.0,0.00014254,2]
[398067203,1765351840404,-250.0,0.00014254,2]
[398067204,1765351840414,-201.44293728,0.00014254,2]
[398067205,1765351840423,-250.0,0.00014254,2]
[398067206,1765351840432,-500.0,0.00014254,2]
[398067207,1765351840441,-250.0,0.00014254,2]
[398067208,1765351840451,-500.0,0.00014254,2]
[398067209,1765351840460,-250.0,0.00014254,2]
[398067210,1765351840469,-500.0,0.00014254,2]
[398067211,1765351840480,-259.33088401,0.00014254,2]
[398067212,1765351840491,-500.0,0.00014254,2]
[398067213,1765351840501,-500.0,0.00014254,2]
[398067214,1765351840510,-500.0,0.00014254,2]
[398067215,1765351840519,-510.31074638,0.00014254,2]
[398067216,1765351840528,-500.0,0.00014254,2]
[398067217,1765351840538,-500.0,0.00014254,2]
[398067218,1765351840547,-500.0,0.00014254,2]
[398067219,1765351840556,-509.87467472,0.00014254,2]
[398067220,1765351840565,-1000.0,0.00014254,2]
[398067221,1765351840575,-1000.0,0.00014254,2]
[398067222,1765351840584,-1000.0,0.00014254,2]
[398067223,1765351840593,-613.91086761,0.00014254,2]
[398067224,1765351840602,-151.0,0.00014254,2]
[398067225,1765351840611,-151.0,0.00014254,2]
[398067226,1765351840620,-151.0,0.00014254,2]
[398067227,1765351840630,-151.0,0.00014254,2]
[398067228,1765351840639,-151.0,0.00014254,2]
[398067229,1765351840648,-151.0,0.00014254,2]
[398067230,1765351840658,-533.88981491,0.00014254,2]
[398067231,1765351840667,-151.0,0.00014254,2]
[398067232,1765351840677,-151.0,0.00014254,2]
[398067233,1765351840686,-151.0,0.00014254,2]
[398067234,1765351840696,-151.0,0.00014254,2]
[398067235,1765351840705,-151.0,0.00014254,2]
[398067236,1765351840715,-158.60499297,0.00014254,2]
[398067237,1765351840725,-202.13941671,0.00014256,2]
[398067238,1765351840734,-502.76831288,0.00014256,2]
[398067239,1765351840743,-500.0,0.00014262,2]
[398067240,1765351840753,-500.0,0.00014262,2]
[398067241,1765351840762,-150.0,0.00014262,2]
[398067242,1765351840771,-150.0,0.00014262,2]
[398067243,1765351840780,-150.0,0.00014262,2]
[398067244,1765351840789,-150.0,0.00014262,2]
[398067245,1765351840799,-154.31095398,0.00014262,2]
[398067246,1765351840808,-500.0,0.00014262,2]
[398067247,1765351840818,-500.0,0.00014262,2]
[398067248,1765351840827,-150.0,0.00014262,2]
[398067249,1765351840836,-150.0,0.00014262,2]
[398067250,1765351840846,-150.0,0.00014262,2]
[398067251,1765351840856,-2255.5292289,0.00014263,2]
[398067252,1765351840865,-50579.4768776,0.00014263,2]
[398067253,1765351840875,-21761.4204766,0.00014263,2]
[398067254,1765351840884,-7841.53762991,0.00014263,2]
[398067268,1765351842751,-36.69608134,0.00014263,2]
[398067269,1765351842896,-500.0,0.00014162,2]
[398067270,1765351842905,-142.570018,0.00014263,2]
[398067273,1765351845648,-269.99999995,0.00014162,2]
[398067274,1765351845740,-262.9,0.00014162,2]
[398067275,1765351845751,-630.21210057,0.00014162,2]
[398067276,1765351845830,-408.60776854,0.00014162,2]
[398067278,1765352702093,250.0,0.000202,30]
[398067279,1765352702225,856.23499561,0.00025,120]
[398067280,1765352970155,-1302.18643745,0.00012591,2]
[398067301,1765353032630,-33.00356255,0.00012591,2]
[398067303,1765353032641,-999.0,0.0001266,3]
[398067305,1765353032651,-250.0,0.00012688,2]
[398067307,1765353032662,-219.87957073,0.00012688,2]
[398067309,1765353032678,-80.12042927,0.00012688,2]
[398067312,1765353032689,-494.47957073,0.00012715,2]
[398067317,1765353032730,-458.44747329,0.00012715,2]
[398067319,1765353032742,-247.07295598,0.00012715,2]
[398067321,1765353032754,-300.0,0.00012715,2]
[398067324,1765353032766,-8350.20639399,0.00012716,2]
[398067327,1765353032776,-260.48805469,0.00012716,2]
[398067330,1765353032786,-150.0,0.00012723,2]
[398067333,1765353032798,-150.0,0.00012723,2]
[398067335,1765353032809,-150.0,0.00012723,2]
[398067337,1765353032819,-150.0,0.00012723,2]
[398067339,1765353032831,-150.0,0.00012723,2]
[398067341,1765353032841,-150.0,0.00012723,2]
[398067343,1765353032852,-150.0,0.00012723,2]
[398067345,1765353032863,-300.0,0.00012744,2]
[398067347,1765353032873,-1082.0,0.0001281,2]
[398067349,1765353032883,-150.0,0.0001281,2]
[398067350,1765353032894,-55298.35510032,0.00012811,2]
[398067353,1765353032906,-22807.15174326,0.00012811,2]
[398067355,1765353032918,-7709.06570691,0.00012811,2]
[398067357,1765353032931,-31835.07631204,0.00012811,2]
[398067380,1765353033162,-2493.21781416,0.00012811,2]
[398067397,1765353033328,-13669.68743986,0.00012811,2]
[398067400,1765353037928,-1179.23868314,0.00012811,2]
[398067401,1765353038190,-14601.85720031,0.00012811,2]
[398067402,1765353038200,-557.98,0.00012816,2]
[398067403,1765353038211,-1000.0,0.00012848,2]
[398067404,1765353038221,-4129.714716,0.00013098,2]
[398067408,1765353039989,-3800.79606342,0.00013098,2]
[398067409,1765353040001,-419.69561454,0.00013098,2]
[398067410,1765353040011,-195.0,0.00013168,2]
[398067411,1765353040021,-306.22882649,0.00013168,2]
[398067412,1765353040031,-195.0,0.00013168,2]
[398067413,1765353040041,-913.17,0.00013168,2]
[398067414,1765353040050,-150.0,0.0001324,2]
[398067415,1765353040060,-1500.0,0.00013301,2]
[398067416,1765353040069,-150.0,0.0001343,2]
[398067417,1765353040079,-8350.20639396,0.0001348,2]
[398067418,1765353040089,-217.22,0.00013542,2]
[398067419,1765353040099,-223.0,0.00013654,2]
[398067420,1765353040109,-300.0,0.00013778,2]
[398067421,1765353040119,-374.15284629,0.00013778,2]
[398067422,1765353040129,-584.52624806,0.00013778,2]
[398067423,1765353040139,-1000.0,0.00013778,2]
[398067424,1765353040149,-151.0,0.00013778,2]
[398067425,1765353040159,-156.587,0.00013778,2]
[398067426,1765353040169,-162.380719,0.00013778,2]
[398067427,1765353040178,-152.2622537,0.00013778,2]
[398067428,1765353040188,-200.0,0.00013778,2]
[398067429,1765353040198,-207.4,0.00013778,2]
[398067430,1765353040207,-215.0738,0.00013778,2]
[398067431,1765353040217,-151.0,0.00013778,2]
[398067432,1765353040227,-223.0315306,0.00013778,2]
[398067433,1765353040237,-231.28369723,0.00013778,2]
[398067434,1765353040246,-239.84119403,0.00013778,2]
[398067435,1765353040256,-248.71531821,0.00013778,2]
[398067436,1765353040266,-257.91778498,0.00013778,2]
[398067437,1765353040276,-1000.0,0.00013778,3]
[398067438,1765353040286,-569.0,0.00013781,2]
[398067439,1765353040296,-155.04462199,0.00013798,2]
[398067440,1765353040306,-541.0,0.00013812,2]
[398067441,1765353040320,-282.98146698,0.00013822,2]
[398067442,1765353040330,-500.0,0.00013836,2]
[398067443,1765353040340,-185.17,0.00013855,2]
[398067444,1765353040350,-8350.20639396,0.00013862,2]
[398067445,1765353040360,-255.0,0.00013911,2]
[398067446,1765353040370,-250.0,0.00013925,2]
[398067447,1765353040381,-300.0,0.00013925,2]
[398067448,1765353040391,-2500.0,0.00013935,2]
[398067449,1765353040401,-420.0,0.00013948,2]
[398067450,1765353040411,-500.0,0.00013954,2]
[398067451,1765353040421,-500.0,0.00013954,2]
[398067452,1765353040431,-500.0,0.00013954,2]
[398067454,1765353040441,-630.61571956,0.00013954,2]
[398067456,1765353040451,-500.0,0.00013954,2]
[398067457,1765353040460,-166.16225575,0.00013954,2]
[398067458,1765353040474,-333.83774425,0.00013954,2]
[398067459,1765353040484,-500.0,0.00013954,2]
[398067460,1765353040494,-326.28868468,0.00013954,2]
[398067461,1765353040503,-500.0,0.00013954,2]
[398067462,1765353040513,-500.0,0.00013954,2]
[398067463,1765353040523,-500.0,0.00013954,2]
[398067464,1765353040532,-500.0,0.00013954,2]
[398067465,1765353040542,-500.0,0.00013954,2]
[398067466,1765353040552,-500.0,0.00013954,2]
[398067467,1765353040562,-500.0,0.00013954,2]
[398067468,1765353040572,-500.0,0.00013954,2]
[398067469,1765353040582,-500.0,0.00013954,2]
[398067470,1765353040592,-500.0,0.00013954,2]
[398067471,1765353040602,-500.0,0.00013954,2]
[398067472,1765353040613,-500.0,0.00013954,2]
[398067473,1765353040623,-500.0,0.00013954,2]
[398067474,1765353040632,-35.35785773,0.00013954,2]
[398067475,1765353040644,-464.64214227,0.00013954,2]
[398067476,1765353040654,-500.0,0.00013954,2]
[398067477,1765353040663,-500.0,0.00013954,2]
[398067478,1765353040674,-500.0,0.00013954,2]
[398067479,1765353040684,-500.0,0.00013954,2]
[398067480,1765353040699,-500.0,0.00013954,2]
[398067481,1765353040708,-500.0,0.00013954,2]
[398067482,1765353040719,-500.0,0.00013954,2]
[398067483,1765353040729,-500.0,0.00013954,2]
[398067484,1765353040739,-500.0,0.00013954,2]
[398067485,1765353040753,-317.74363867,0.00013954,2]
[398067486,1765353040763,-500.0,0.00013954,2]
[398067487,1765353040776,-500.0,0.00013954,2]
[398067488,1765353040788,-500.0,0.00013954,2]
[398067489,1765353040799,-500.0,0.00013954,2]
[398067490,1765353040809,-500.0,0.00013954,2]
[398067491,1765353040819,-500.0,0.00013954,2]
[398067492,1765353040832,-500.0,0.00013954,2]
[398067493,1765353040843,-500.0,0.00013954,2]
[398067494,1765353040852,-500.0,0.00013954,2]
[398067495,1765353040861,-500.0,0.00013954,2]
[398067496,1765353040871,-500.0,0.00013954,2]
[398067497,1765353040881,-500.0,0.00013954,2]
[398067498,1765353040891,-500.0,0.00013954,2]
[398067499,1765353040901,-1705.18779709,0.00013955,2]